bitfinex/quotes_ETHUSD_20250123
["timestamp","ask_amount","ask_price","bid_price","bid_amount"]
[1737621036599,3.10464,3221.0,3220.6,0.34611112]
[1737621037361,3.89081,3220.7,3220.6,0.34611112]
[1737621037560,3.92186032,3220.7,3220.6,0.34611112]
[1737621037996,3.10502,3220.6,3220.2,0.22208258]
[1737621039076,3.10502,3220.6,3220.3,0.34596385]
[1737621039279,8.49468,3221.0,3220.3,3.45124385]
[1737621039477,5.39,3221.0,3220.6,3.10501]
[1737621040196,8.49397,3221.7,3221.0,0.7709]
[1737621040379,5.39,3221.7,3221.0,3.87544]
[1737621040583,5.39,3221.7,3221.3,0.7709]
[1737621040813,0.55970191,3221.8,3221.4,3.10424]
[1737621041119,0.55970191,3221.8,3221.6,3.10397]
[1737621041421,0.55970191,3221.8,3221.4,3.10424]
[1737621041708,0.55970191,3221.8,3221.5,3.23710496]
[1737621042366,3.10366,3222.0,3221.5,0.13297496]
[1737621042572,0.03105032,3222.1,3221.5,0.13297496]
[1737621042906,0.03105032,3222.1,3221.4,3.10424]
[1737621043122,8.49347,3222.2,3221.5,0.03103729]
[1737621043617,3.1036,3222.1,3221.5,0.03103729]
[1737621043773,5.39,3222.2,3221.6,3.10404]
[1737621044118,8.49348,3222.2,3221.6,3.10404]
[1737621045209,9.27921,3222.4,3221.8,0.7709]
[1737621045419,5.39,3222.4,3221.8,3.87468]
[1737621045710,5.39,3222.6,3222.1,0.7709]
[1737621045910,5.39,3222.6,3222.2,3.13442045]
[1737621046866,5.39,3222.6,3222.1,3.87446]
[1737621049030,3.10299,3222.7,3222.1,3.87446]
[1737621049326,3.10309,3222.6,3222.1,0.7709]
[1737621050012,3.10299,3222.7,3222.1,0.7709]
[1737621050728,3.10299,3222.7,3222.1,3.87444]
[1737621050897,3.10299,3222.7,3222.1,3.90547008]
[1737621051224,3.10299,3222.7,3222.1,0.7709]
[1737621051427,3.10314,3222.6,3222.1,0.7709]
[1737621051728,3.10327,3222.5,3222.1,0.7709]
[1737621052040,3.10329,3222.4,3222.1,0.7709]
[1737621053024,0.03105032,3222.8,3222.1,0.7709]
[1737621053221,3.10281,3222.9,3222.2,3.13443266]
[1737621054049,6.2057,3222.9,3222.2,3.13443266]
[1737621054228,3.10292,3222.8,3222.2,3.13443266]
[1737621055329,6.20569,3222.9,3222.2,3.13443266]
[1737621055625,3.10281,3222.9,3222.2,3.13443266]
[1737621055850,3.10289,3222.8,3222.2,3.13443266]
[1737621056679,3.10281,3222.9,3222.2,3.13443266]
[1737621057080,3.10281,3222.9,3222.2,6.23782266]
[1737621057684,3.10281,3222.9,3222.3,3.10333]
[1737621058051,3.10281,3222.9,3222.4,0.7709]
[1737621058783,3.10295,3222.8,3222.4,0.7709]
[1737621058987,3.103,3222.7,3222.4,0.7709]
[1737621059687,3.103,3222.7,3222.2,0.7709]
[1737621060290,3.10319,3222.5,3222.2,0.7709]
[1737621061163,5.39,3222.2,3221.9,0.7709]
[1737621062663,5.39,3222.2,3222.0,3.1036]
[1737621062863,5.39,3222.2,3221.9,0.7709]
[1737621063171,5.39,3222.2,3221.9,3.87457]
[1737621063401,5.39,3222.2,3222.0,3.10365]
[1737621063715,5.39,3222.2,3221.9,0.7709]
[1737621064012,5.39,3222.2,3221.7,3.10386]
[1737621064013,6.1759,3222.2,3221.6,0.7709]
[1737621064217,3.10367,3222.0,3221.6,0.7709]
[1737621064422,9.27939,3222.2,3221.6,3.87494]
[1737621064617,5.39,3222.2,3221.7,3.13490651]
[1737621064782,5.39,3222.2,3222.0,0.7709]
[1737621066805,3.10328,3222.4,3222.0,0.7709]
[1737621067236,3.10339,3222.3,3222.0,0.7709]
[1737621067392,3.10362,3222.1,3221.6,0.7967]
[1737621068020,0.03105032,3222.2,3221.6,0.7967]
[1737621068329,6.20689,3222.3,3221.7,3.10392]
[1737621068496,3.10349,3222.2,3221.7,3.10392]
[1737621069437,3.10349,3222.2,3221.8,0.34493978]
[1737621070129,3.10343,3222.3,3221.8,0.34493978]
[1737621070331,3.85912,3222.1,3221.8,0.34493978]
[1737621070618,3.10375,3221.9,3221.8,0.34493978]
[1737621070822,3.10389,3221.8,3221.4,1.01787199]
[1737621071212,3.10376,3221.9,3221.4,1.01787199]
[1737621071656,9.2491,3222.1,3221.5,3.10414]
[1737621071657,8.4936,3222.1,3221.5,3.10414]
[1737621071960,5.39,3222.1,3221.8,0.7967]
[1737621073760,5.39,3222.1,3221.9,0.13294808]
[1737621073963,3.10314,3222.6,3221.9,6.34033808]
[1737621074122,3.10314,3222.6,3221.9,3.23662808]
[1737621074322,3.13419032,3222.6,3221.9,3.23662808]
[1737621074671,3.10314,3222.6,3222.0,3.1036]
[1737621074876,3.13419032,3222.6,3222.0,3.1036]
[1737621075220,3.13419032,3222.6,3222.1,0.34573348]
[1737621075722,3.10314,3222.6,3222.1,0.34573348]
[1737621075938,3.10314,3222.6,3222.1,3.44929348]
[1737621076567,3.10314,3222.6,3222.1,3.10356]
[1737621076937,8.49299,3222.7,3222.1,3.10356]
[1737621077201,8.49299,3222.7,3222.2,0.7967]
[1737621077864,8.49299,3222.7,3222.3,0.13299125]
[1737621079094,8.493,3222.7,3222.3,0.13299125]
[1737621079301,8.493,3222.7,3222.2,0.7967]
[1737621079697,3.1028,3222.9,3222.3,0.03103202]
[1737621079698,8.4928,3222.9,3222.3,0.03103202]
[1737621080017,8.4928,3222.9,3222.4,3.10327]
[1737621080376,5.39,3223.1,3222.7,0.7847]
[1737621080568,5.39,3223.1,3222.8,3.10282]
[1737621080865,0.59075223,3223.4,3222.8,3.10281]
[1737621081079,0.55970191,3223.4,3222.8,3.10281]
[1737621081280,3.66203191,3223.4,3222.8,3.10281]
[1737621081482,0.55970191,3223.4,3223.0,3.10269]
[1737621081722,0.55970191,3223.4,3222.9,0.7847]
[1737621081920,0.55970191,3223.4,3222.9,3.88746]
[1737621082500,3.10242,3223.3,3223.1,0.1330157]
[1737621083141,3.1025,3223.2,3223.1,0.1330157]
[1737621083522,0.03105032,3223.3,3222.9,0.7847]
[1737621083834,3.10261,3223.1,3222.7,0.7847]
[1737621084038,0.03105032,3223.0,3222.4,3.88796]
[1737621084187,3.10289,3222.8,3222.4,0.7847]
[1737621084685,6.20587,3222.8,3222.4,0.7847]
[1737621084890,3.10289,3222.8,3222.4,0.7847]
[1737621087533,3.10289,3222.8,3222.5,0.13227613]
[1737621088128,3.10272,3223.0,3222.5,0.13227613]
[1737621088290,3.10272,3223.0,3222.4,3.88795]
[1737621088892,3.10272,3223.0,3222.6,0.13227257]
[1737621089737,3.1028,3222.9,3222.6,0.13227257]
[1737621090649,3.1028,3222.9,3222.4,3.88795]
[1737621093609,0.22853507,3222.8,3222.5,0.13226963]
[1737621094956,0.22853507,3222.8,3222.6,0.13226963]
[1737621095258,0.22853507,3222.7,3222.6,0.13226963]
[1737621097429,10.36515458,3222.7,3222.6,0.13226963]
[1737621097629,13.36515458,3222.7,3222.6,0.13226963]
[1737621099144,13.99344762,3222.7,3222.6,0.13226963]
[1737621099543,3.10376,3221.9,3221.5,0.8177]
[1737621099719,3.10386,3221.8,3221.5,0.8177]
[1737621099919,3.13503032,3221.7,3221.3,0.8177]
[1737621100120,0.03105032,3221.7,3221.3,0.8177]
[1737621100361,8.49412,3221.6,3220.9,0.8074]
[1737621100561,3.10424,3221.4,3220.5,3.10501]
[1737621100769,3.10452,3221.2,3220.6,0.8074]
[1737621100970,0.03105032,3221.1,3220.6,0.8074]
[1737621101136,3.10453,3221.1,3220.6,0.8074]
[1737621101350,3.10452,3221.2,3220.6,0.8074]
[1737621102871,0.59924116,3221.1,3220.6,0.8074]
[1737621103023,0.59924116,3221.1,3220.6,3.9124]
[1737621103967,0.59924116,3221.1,3220.8,3.10474]
[1737621104165,0.22853507,3221.0,3220.9,3.10472]
[1737621104330,0.22853507,3221.0,3220.9,3.943164]
[1737621104530,0.22853507,3221.0,3220.9,3.91212]
[1737621104865,0.22853507,3221.0,3220.9,3.94316417]
[1737621105173,0.22853507,3221.0,3220.9,3.91212]
[1737621105528,0.22853507,3221.2,3221.0,3.10456]
[1737621107170,0.22853507,3221.4,3221.0,3.10456]
[1737621108257,0.22853507,3221.3,3221.0,3.10456]
[1737621109932,0.59924116,3221.5,3221.0,3.10456]
[1737621110872,3.73449148,3221.5,3220.9,0.8074]
[1737621111047,3.10445,3221.2,3220.6,0.8074]
[1737621111250,3.10462,3221.0,3220.6,0.8074]
[1737621111453,3.13567032,3221.0,3220.6,0.8074]
[1737621111862,3.10462,3221.0,3220.6,0.8074]
[1737621112058,3.13567032,3221.0,3220.6,0.8074]
[1737621112639,0.22853507,3220.9,3220.6,0.8074]
[1737621113148,0.22853507,3220.9,3220.3,3.10527]
[1737621113149,3.13595032,3220.8,3220.3,0.8074]
[1737621113675,3.33334507,3220.9,3220.4,3.10517]
[1737621114036,0.03105032,3220.8,3220.3,0.8074]
[1737621114271,3.33334507,3220.9,3220.3,3.91266]
[1737621114478,3.10481,3220.9,3220.3,3.91266]
[1737621114836,0.03105032,3220.8,3220.3,3.91266]
[1737621115334,3.10481,3220.9,3220.3,3.91266]
[1737621116246,0.40021775,3221.0,3220.4,3.10518]
[1737621116432,3.50489775,3221.0,3220.4,3.10518]
[1737621116632,0.7859,3220.7,3220.0,0.8074]
[1737621116876,3.13611032,3220.6,3220.0,0.8074]
[1737621117078,3.10506,3220.6,3220.0,3.91291]
[1737621117377,5.39,3220.5,3220.0,3.91291]
[1737621117773,5.39,3220.5,3220.1,3.10548]
[1737621118182,5.6206817,3220.5,3220.1,3.10548]
[1737621118338,5.6206817,3220.5,3220.2,3.10533]
[1737621118775,5.6206817,3220.5,3220.1,3.13653432]
[1737621119076,5.6206817,3220.5,3220.4,3.9126]
[1737621119668,5.39,3220.5,3220.4,3.9126]
[1737621122881,5.39,3220.5,3220.4,4.04385861]
[1737621123245,8.49445,3221.2,3220.6,3.10498]
[1737621123442,5.39,3221.2,3220.5,0.03104657]
[1737621123651,5.39,3221.2,3220.9,3.10466]
[1737621123955,5.39,3221.2,3220.7,3.10483]
[1737621124487,5.39,3221.2,3220.8,3.10479]
[1737621125193,5.39,3221.2,3220.9,3.13574403]
[1737621125379,0.6014363,3221.1,3220.9,3.1047]
[1737621126976,0.6014363,3221.1,3221.0,3.10462]
[1737621127174,0.6014363,3221.0,3220.9,3.1047]
[1737621128460,0.23132165,3221.0,3220.9,3.23646517]
[1737621130595,0.23132165,3221.0,3220.9,0.13176517]
[1737621132909,0.23132165,3221.0,3220.9,3.23648517]
[1737621133203,0.23132165,3221.0,3220.9,0.13176517]
[1737621133204,0.6014363,3221.0,3220.9,0.13176517]
[1737621134007,0.63248662,3221.0,3220.9,0.13176517]
[1737621134195,0.6014363,3221.0,3220.9,0.13176517]
[1737621134569,0.23132165,3221.0,3220.7,3.10487]
[1737621135198,0.23132165,3221.0,3220.6,0.03104691]
[1737621135503,0.23132165,3221.0,3220.6,3.13599691]
[1737621135705,3.10444,3221.2,3220.6,3.13599691]
[1737621136169,0.22552962,3220.9,3220.7,0.1317878]
[1737621136707,0.22552962,3220.9,3220.8,0.8322]
[1737621137608,0.22552962,3220.9,3220.8,3.96805693]
[1737621137780,0.22552962,3220.9,3220.8,4.09984473]
[1737621137980,0.22552962,3220.9,3220.8,4.64984473]
[1737621138182,0.22552962,3220.9,3220.8,7.64984473]
[1737621138398,9.62e-06,3220.9,3220.8,7.6187978]
[1737621138609,5.39,3222.5,3222.1,3.93574]
[1737621138808,8.49319,3222.5,3221.8,3.10381]
[1737621139008,3.13439032,3222.4,3221.8,3.10381]
[1737621139388,3.13439032,3222.4,3221.8,6.20759]
[1737621139579,5.39,3222.5,3222.0,3.10365]
[1737621140031,8.52423032,3222.5,3222.0,3.10365]
[1737621140332,9.64514878,3222.5,3222.0,3.10365]
[1737621141304,9.64514878,3222.5,3221.8,3.10378]
[1737621141487,0.03105032,3222.4,3221.8,3.10378]
[1737621141887,0.03105032,3222.4,3221.9,3.10375]
[1737621142900,0.03105032,3222.4,3221.8,3.10378]
[1737621143116,3.13433032,3222.4,3221.8,3.10378]
[1737621144032,8.49378,3221.9,3221.2,3.10436]
[1737621144335,3.13492032,3221.8,3221.2,3.10436]
[1737621144500,3.92082032,3221.8,3221.3,0.13139906]
[1737621144833,0.81695032,3221.8,3221.3,0.13139906]
[1737621145017,0.81695032,3221.8,3221.3,3.23566906]
[1737621146276,0.81695032,3221.8,3221.3,3.10427]
[1737621146427,3.92086032,3221.8,3221.2,3.10436]
[1737621146851,3.92086032,3221.8,3221.3,3.10432]
[1737621148351,0.81695032,3221.8,3221.3,3.10432]
[1737621148755,0.03105032,3221.8,3221.4,3.10414]
[1737621149068,5.39,3221.9,3221.5,3.10412]
[1737621149443,0.81695032,3221.8,3221.3,3.10428]
[1737621149845,0.81695032,3221.8,3221.4,0.13146588]
[1737621150243,0.81695032,3221.8,3221.4,3.23569588]
[1737621150583,0.7859,3221.8,3221.4,3.23569588]
[1737621150751,5.39,3221.9,3221.4,3.23569588]
[1737621151069,5.39,3221.9,3221.5,3.10413]
[1737621151760,0.21058829,3221.8,3221.5,3.10413]
[1737621153164,5.42105032,3221.9,3221.5,3.10413]
[1737621153367,0.03105032,3221.8,3221.4,3.10419]
[1737621154171,6.63142103,3221.9,3221.4,6.20836]
[1737621154711,6.63142103,3221.9,3221.4,3.10417]
[1737621154865,5.39,3221.9,3221.5,3.10413]
[1737621155070,5.42105032,3221.9,3221.5,3.10413]
[1737621155806,0.21067608,3221.8,3221.5,3.10413]
[1737621157214,0.21067608,3221.7,3221.5,3.10413]
[1737621158525,0.21067608,3221.8,3221.5,3.10413]
[1737621162833,0.21067608,3221.8,3221.6,0.13156905]
[1737621163632,5.39,3221.9,3221.6,0.13156905]
[1737621163833,5.39,3222.0,3221.7,0.13156905]
[1737621164947,5.39,3222.0,3221.5,3.10406]
[1737621165124,0.03105032,3221.9,3221.5,3.10406]
[1737621165324,6.1516,3221.7,3220.8,0.8051]
[1737621165540,3.10424,3221.4,3220.5,0.8051]
[1737621165739,3.10464,3221.0,3220.4,3.10513]
[1737621165944,3.13577032,3220.9,3220.3,0.8051]
[1737621166102,3.13577032,3220.9,3220.3,3.1053]
[1737621166103,0.03105032,3220.9,3220.3,3.1053]
[1737621166308,3.13583032,3220.9,3220.3,3.1053]
[1737621166509,3.10485,3220.8,3220.1,3.91057]
[1737621166840,0.7616,3220.6,3220.1,3.10547]
[1737621167018,0.7616,3220.6,3220.2,3.10538]
[1737621167521,0.7616,3220.6,3220.2,3.44777004]
[1737621169146,0.7616,3220.6,3220.3,0.13168116]
[1737621170644,0.7616,3220.6,3220.2,3.10538]
[1737621170848,6.1516,3220.6,3220.2,3.10538]
[1737621176237,5.39,3220.6,3220.2,6.21071]
[1737621176761,5.39,3220.7,3220.2,6.21071]
[1737621176960,5.39,3220.7,3220.2,3.10533]
[1737621177383,5.39,3220.7,3220.3,3.10529]
[1737621178043,5.39,3220.7,3220.2,3.10533]
[1737621178239,5.42105032,3220.7,3220.2,3.10533]
[1737621178439,5.39,3220.7,3220.2,3.10533]
[1737621178668,5.42105032,3220.7,3220.2,3.10533]
[1737621179175,5.39,3220.7,3220.2,3.10533]
[1737621179980,5.42105032,3220.7,3220.2,3.10533]
[1737621180463,6.34980035,3220.7,3219.9,0.8051]
[1737621180668,3.10549,3220.1,3219.6,0.8051]
[1737621180872,3.10575,3219.9,3219.3,0.8051]
[1737621181039,0.79265032,3219.8,3219.3,0.8051]
[1737621181245,8.49588,3219.7,3219.2,3.10629]
[1737621181444,0.03105032,3219.6,3219.0,3.52321667]
[1737621181764,0.03105032,3219.6,3219.0,6.62970667]
[1737621181943,0.03105032,3219.6,3219.3,0.13127627]
[1737621182144,0.95990335,3219.6,3219.3,0.13127627]
[1737621183068,4.06595335,3219.6,3219.3,0.13127627]
[1737621183376,4.06595335,3219.6,3219.0,3.52315667]
[1737621183566,3.13710032,3219.6,3219.0,3.52315667]
[1737621183885,0.7616,3219.3,3219.0,0.41666667]
[1737621184036,3.10645,3219.1,3219.0,0.41666667]
[1737621184437,3.13750032,3219.1,3219.0,0.41666667]
[1737621188276,8.49642,3219.2,3219.0,0.41666667]
[1737621188780,12.04688512,3219.2,3219.0,0.41666667]
[1737621189133,8.94043512,3219.2,3219.0,0.41666667]
[1737621189539,3.10645,3219.1,3219.0,0.41666667]
[1737621190673,3.13750032,3219.1,3219.0,0.41666667]
[1737621193248,9.31340032,3219.1,3219.0,0.41666667]
[1737621193455,14.11873354,3219.1,3219.0,0.41666667]
[1737621194577,14.27716069,3219.1,3219.0,6.67e-06]
[1737621195077,14.77716069,3219.1,3219.0,6.67e-06]
[1737621196875,15.38554271,3219.1,3219.0,6.67e-06]
[1737621199055,15.38554271,3219.1,3216.3,2.92661213]
[1737621199056,8.49835,3217.2,3216.8,0.7628]
[1737621199251,0.03105032,3217.1,3216.8,0.7628]
[1737621199451,3.10858,3216.9,3216.4,0.7628]
[1737621199672,5.39,3216.7,3215.8,3.10961]
[1737621199875,3.10903,3216.5,3215.8,3.10961]
[1737621200045,0.03105032,3216.4,3215.8,3.10961]
[1737621200240,3.10911,3216.4,3215.7,0.7628]
[1737621200587,3.10933,3216.2,3215.7,0.7628]
[1737621200772,3.10933,3216.2,3215.9,0.1306498]
[1737621200969,2.69266333,3216.2,3215.9,0.1306498]
[1737621201489,5.39,3216.6,3215.9,0.1306498]
[1737621201490,8.4989,3216.6,3215.9,0.1306498]
[1737621201782,0.03105032,3216.5,3215.8,3.10958]
[1737621201966,0.03105032,3216.5,3216.0,3.10943]
[1737621202167,8.49896,3216.6,3216.0,3.10943]
[1737621202488,3.14005032,3216.5,3215.8,3.10958]
[1737621202700,0.03105032,3216.5,3215.9,3.10945]
[1737621202855,3.14003032,3216.5,3215.9,3.10945]
[1737621203190,0.03105032,3216.5,3216.0,3.10945]
[1737621203729,0.03105032,3216.5,3215.7,3.87251]
[1737621203899,3.10914,3216.4,3215.7,3.87251]
[1737621204052,0.81695032,3216.3,3215.7,0.7628]
[1737621204260,3.10945,3216.0,3215.7,0.7628]
[1737621204453,3.1097,3215.8,3215.4,0.1627814]
[1737621204680,3.14087032,3215.7,3215.4,0.1627814]
[1737621204867,3.10965,3215.8,3215.4,0.1627814]
[1737621205069,3.14098032,3215.6,3215.4,0.1627814]
[1737621205270,4.30504335,3215.6,3215.4,0.1627814]
[1737621206186,8.49993,3215.5,3215.4,0.1627814]
[1737621206562,11.49993,3215.5,3215.4,0.1627814]
[1737621207591,12.28583,3215.5,3215.4,0.1627814]
[1737621209260,10.9898494,3215.5,3215.4,0.1627814]
[1737621209570,12.57723974,3215.5,3215.4,0.1627814]
[1737621214326,7.2039494,3215.5,3215.4,0.1627814]
[1737621215324,4.0940194,3215.5,3215.4,0.1627814]
[1737621215525,4.0940194,3215.5,3215.4,4.0801114]
[1737621216534,4.0940194,3216.3,3216.0,3.10944]
[1737621216729,4.0940194,3216.3,3216.2,3.10925]
[1737621217034,3.10855,3217.0,3216.4,3.10897]
[1737621217236,3.13965032,3216.9,3216.3,3.10915]
[1737621217560,3.13965032,3216.9,3216.2,3.10918]
[1737621217561,3.0,3216.8,3216.2,3.10918]
[1737621217714,3.1086,3216.9,3216.4,3.10905]
[1737621217910,7.2024794,3217.1,3216.5,3.10896]
[1737621218128,7.2024794,3217.1,3216.4,3.10905]
[1737621218411,4.0940194,3217.1,3216.5,3.10894]
[1737621218628,4.0940194,3217.1,3216.7,3.10869]
[1737621218911,0.03105032,3217.0,3216.7,3.10869]
[1737621220151,3.10867,3216.9,3216.3,3.10912]
[1737621220449,0.03105032,3216.8,3216.3,3.10912]
[1737621222148,0.03105032,3216.8,3216.1,3.91661]
[1737621222355,3.13979032,3216.8,3216.1,3.91661]
[1737621222720,3.13979032,3216.8,3216.1,0.8073]
[1737621222920,3.13979032,3216.8,3216.2,3.10919]
[1737621223156,3.13979032,3216.8,3216.2,3.2399007]
[1737621223651,3.13979032,3216.8,3216.2,6.3490907]
[1737621223843,0.03105032,3216.8,3216.3,3.10914]
[1737621224245,4.0940194,3216.7,3216.3,3.10914]
[1737621224466,0.03105032,3216.6,3216.3,3.10914]
[1737621224632,4.0940194,3216.7,3216.4,0.1307107]
[1737621226062,0.03105032,3216.6,3216.4,0.1307107]
[1737621226478,0.03105032,3216.6,3216.5,0.1307107]
[1737621226766,3.86330729,3216.6,3216.5,0.1307107]
[1737621227554,3.10898,3216.5,3215.9,3.31933879]
[1737621227767,4.12506972,3216.4,3215.9,3.31933879]
[1737621228671,4.12506972,3216.4,3216.0,3.10942]
[1737621228919,4.0940194,3216.4,3216.3,3.10916]
[1737621230418,4.0940194,3216.4,3216.3,3.24037744]
[1737621231522,4.0940194,3216.4,3216.3,0.13121744]
[1737621233111,4.50652637,3216.4,3216.3,0.13121744]
[1737621233301,4.0940194,3216.4,3216.3,0.13121744]
[1737621233637,4.12506972,3216.4,3215.9,3.10954]
[1737621234038,7.23420972,3216.4,3215.8,0.8324]
[1737621234242,3.10917,3216.3,3215.8,0.8324]
[1737621234537,0.03105032,3216.2,3215.8,3.94203]
[1737621234743,0.03105032,3216.2,3215.9,0.13128654]
[1737621235329,7.23414972,3216.4,3215.9,0.13128654]
[1737621235523,0.03105032,3216.3,3215.9,0.13128654]
[1737621235729,4.0940194,3216.4,3216.0,3.10943]
[1737621235953,4.0940194,3216.4,3216.2,3.10919]
[1737621236254,4.0940194,3216.4,3216.3,3.10916]
[1737621236551,4.0940194,3216.4,3216.1,3.10927]
[1737621236906,4.0940194,3216.4,3216.2,0.13128654]
[1737621237110,4.0940194,3216.4,3216.2,3.24047654]
[1737621238462,4.0940194,3216.4,3216.3,0.13128654]
[1737621241914,4.0940194,3216.4,3216.1,3.1093]
[1737621242111,0.03105032,3216.5,3216.3,0.13151572]
[1737621242417,3.13988032,3216.7,3216.3,0.13151572]
[1737621242657,0.03105032,3216.7,3216.3,0.13151572]
[1737621242869,4.8799194,3217.2,3216.7,3.10876]
[1737621243245,3.0,3217.1,3216.7,3.10876]
[1737621243550,3.0,3217.1,3216.8,3.10867]
[1737621243892,4.0940194,3217.2,3216.7,3.10876]
[1737621244452,7.2023194,3217.2,3216.7,3.10876]
[1737621244627,3.10887,3216.6,3216.5,0.21067199]
[1737621245045,6.21744,3216.8,3216.1,3.89038]
[1737621245344,3.13984032,3216.7,3216.1,3.89038]
[1737621245555,0.03105032,3216.7,3216.3,3.10914]
[1737621245761,3.1087,3216.8,3216.3,3.10914]
[1737621246114,0.03105032,3216.7,3216.4,0.13175702]
[1737621246359,3.13983032,3216.7,3216.4,0.13175702]
[1737621246518,0.62485303,3216.7,3216.4,0.13175702]
[1737621246714,0.03105032,3216.8,3216.4,0.13175702]
[1737621246918,0.7859,3217.0,3216.4,0.13175702]
[1737621246919,3.8944,3217.0,3216.4,3.24075702]
[1737621247419,3.8944,3217.0,3216.4,3.109]
[1737621247711,0.7859,3217.0,3216.5,3.10895]
[1737621247989,6.10839,3217.1,3216.6,3.10887]
[1737621247990,3.10839,3217.1,3216.6,3.10887]
[1737621249279,0.03105032,3217.0,3216.4,3.109]
[1737621249486,0.03105032,3217.0,3216.4,6.21797]
[1737621250489,0.03105032,3217.0,3216.4,3.10898]
[1737621250982,0.03105032,3217.0,3216.4,6.21796]
[1737621251851,3.10839,3217.1,3216.4,3.10898]
[1737621252052,3.10839,3217.1,3216.6,3.10886]
[1737621252773,3.10865,3216.9,3216.2,3.10919]
[1737621252974,0.7826,3216.7,3216.1,0.7811]
[1737621253176,3.10927,3216.2,3215.8,0.8194]
[1737621253496,0.03105032,3216.1,3215.8,0.8194]
[1737621253992,3.10891,3216.6,3216.0,3.10943]
[1737621254184,3.10891,3216.6,3215.8,3.92897]
[1737621254185,0.03105032,3216.5,3215.9,3.10952]
[1737621254588,3.10907,3216.4,3215.9,3.10952]
[1737621254884,3.14003032,3216.5,3215.9,3.10952]
[1737621255487,0.03105032,3216.5,3215.9,3.10952]
[1737621255655,3.10913,3216.4,3215.8,3.92902]
[1737621255850,0.03105032,3216.3,3215.8,0.8194]
[1737621256073,0.03105032,3216.3,3215.8,3.92901]
[1737621256559,0.03105032,3216.3,3215.6,3.10976]
[1737621256759,0.7826,3216.2,3215.9,3.10954]
[1737621256963,3.10908,3216.4,3215.9,3.10954]
[1737621257180,4.0940194,3216.6,3216.1,3.10934]
[1737621257364,4.0940194,3216.6,3216.2,3.10919]
[1737621257900,0.03105032,3216.5,3216.2,3.10919]
[1737621258056,3.55258729,3216.5,3216.0,0.8194]
[1737621258392,0.41250697,3216.5,3216.1,3.10928]
[1737621258583,4.0940194,3216.6,3216.1,3.10928]
[1737621258930,3.10897,3216.5,3215.9,3.10945]
[1737621259088,0.03105032,3216.4,3215.9,3.10945]
[1737621259298,3.89177,3216.3,3215.8,0.8194]
[1737621259469,0.03105032,3216.2,3215.8,3.10962]
[1737621259664,0.03105032,3216.2,3215.9,3.10953]
[1737621259881,0.03105032,3216.2,3215.5,3.10985]
[1737621259882,3.10946,3216.0,3215.5,3.10985]
[1737621260078,3.39228203,3216.2,3215.6,0.8194]
[1737621260283,3.39228203,3216.2,3215.7,3.10971]
[1737621260497,0.03105032,3216.1,3215.7,3.10971]
[1737621261002,3.0,3216.4,3216.0,3.1094]
[1737621261300,3.89488,3216.5,3216.0,3.10944]
[1737621263484,4.2696578,3216.5,3216.0,3.10944]
[1737621265399,0.7859,3216.9,3216.5,3.10895]
[1737621265708,4.21775294,3217.1,3216.5,3.10895]
[1737621266791,0.03105032,3217.0,3216.5,3.10895]
[1737621266988,0.7859,3216.9,3216.2,0.82]
[1737621267199,3.10879,3216.7,3216.1,6.21859]
[1737621267489,0.03105032,3216.8,3216.4,3.10899]
[1737621267692,0.7859,3216.9,3216.5,3.10896]
[1737621268071,0.03105032,3216.8,3216.2,3.1092]
[1737621268271,0.03105032,3216.8,3216.4,3.10898]
[1737621268508,0.7859,3216.9,3216.4,3.10898]
[1737621268693,0.03105032,3216.8,3216.4,3.10898]
[1737621269001,0.7859,3216.9,3216.4,3.10898]
[1737621269601,0.7859,3216.9,3216.5,3.10894]
[1737621269803,6.89422,3217.2,3216.5,3.92894]
[1737621270002,3.10839,3217.1,3216.5,3.92894]
[1737621270381,6.89422,3217.2,3216.6,3.1088]
[1737621270714,3.0,3217.1,3216.6,3.1088]
[1737621270914,0.7859,3217.2,3216.8,3.10859]
[1737621271084,0.7859,3217.2,3216.6,3.10887]
[1737621271287,0.03105032,3217.1,3216.6,3.10887]
[1737621271796,3.13944032,3217.1,3216.6,3.10887]
[1737621271991,3.13944032,3217.1,3216.4,3.10905]
[1737621272196,3.10859,3216.9,3216.4,3.10905]
[1737621272395,0.03105032,3216.8,3216.4,3.10905]
[1737621272808,0.03105032,3216.8,3216.3,0.82]
[1737621273200,3.1085,3217.0,3216.4,3.10905]
[1737621273529,4.21032597,3217.1,3216.5,3.10889]
[1737621274028,0.7859,3217.2,3216.6,3.10879]
[1737621274226,0.7859,3217.2,3216.8,3.10865]
[1737621274405,3.10802,3217.5,3216.8,3.10865]
[1737621274406,0.7859,3217.5,3216.8,3.92865]
[1737621274607,0.7859,3217.7,3217.4,3.10802]
[1737621274810,4.0940194,3217.9,3217.5,3.10796]
[1737621275887,3.89337,3218.1,3217.5,3.10796]
[1737621276124,3.89337,3218.1,3217.4,0.82]
[1737621276125,0.7859,3218.1,3217.4,0.82]
[1737621276326,0.7859,3218.5,3217.9,3.10761]
[1737621276526,1.27389194,3218.5,3218.0,3.10749]
[1737621276902,0.48799194,3218.5,3218.0,3.93759]
[1737621277088,0.48799194,3218.5,3218.2,3.10729]
[1737621277542,0.03105032,3218.4,3218.0,3.93755]
[1737621277825,3.13822032,3218.4,3217.7,0.8301]
[1737621278031,1.14852123,3218.3,3217.4,0.8301]
[1737621278188,3.10755,3218.0,3217.4,3.93818]
[1737621278388,0.03105032,3217.9,3217.5,3.10797]
[1737621278828,3.10779,3217.8,3217.1,4.19042]
[1737621278997,0.7859,3218.3,3217.2,3.10827]
[1737621278998,0.7859,3217.7,3217.2,3.10827]
[1737621279197,3.10766,3217.9,3217.3,3.10815]
[1737621279426,3.83882132,3217.9,3217.3,3.10815]
[1737621280545,3.10771,3217.8,3216.9,3.10854]
[1737621280708,3.10799,3217.6,3216.9,3.10854]
[1737621280919,0.7859,3217.4,3216.8,0.8301]
[1737621281232,0.03105032,3217.3,3216.7,3.10874]
[1737621281726,3.10829,3217.2,3216.6,3.10884]
[1737621281930,0.03105032,3217.1,3216.6,3.10884]